[Event "Early-Titled-Tuesday-Blitz-February-13-2024"]
[Site "Chess.com"]
[Date "2024.02.13"]
[Round "2"]
[White "GrotBchess"]
[Black "Hanging_pointer"]
[Result "0-1"]
[WhiteElo "2368"]
[BlackElo "2611"]
[TimeControl "180+1"]
[EndTime "8:19:33 PST"]
[Termination "Hanging_pointer won by resignation"]

1. d4 {[%clk 0:03:00.9]} 1... c6 {[%clk 0:03:00.9]} 2. c4 {[%clk 0:02:58.7]}
2... d5 {[%clk 0:03:01.8]} 3. Nf3 {[%clk 0:02:58.4]} 3... Nf6 {[%clk 0:03:00.1]}
4. Nc3 {[%clk 0:02:58.5]} 4... dxc4 {[%clk 0:02:57.2]} 5. Ne5 {[%clk 0:02:56.4]}
5... b5 {[%clk 0:02:52.3]} 6. g3 {[%clk 0:02:56.3]} 6... b4 {[%clk 0:02:50.3]}
7. Nb1 {[%clk 0:02:52.9]} 7... Ng4 {[%clk 0:02:49]} 8. Nxc4 {[%clk 0:02:43.5]}
8... Qd5 {[%clk 0:02:47.7]} 9. f3 {[%clk 0:02:31.6]} 9... Qxc4 {[%clk
0:02:44.4]} 10. fxg4 {[%clk 0:02:24.1]} 10... Qd5 {[%clk 0:02:44.3]} 11. Rg1
{[%clk 0:02:23.3]} 11... Bxg4 {[%clk 0:02:44.5]} 12. Bg2 {[%clk 0:02:20.8]}
12... Qd7 {[%clk 0:02:37.2]} 13. Bf4 {[%clk 0:02:13.5]} 13... a5 {[%clk
0:02:27.9]} 14. Qc2 {[%clk 0:02:06.1]} 14... Qe6 {[%clk 0:02:22.3]} 15. Bxb8
{[%clk 0:01:52.6]} 15... Rxb8 {[%clk 0:02:21.5]} 16. Qxc6+ {[%clk 0:01:52.4]}
16... Qxc6 {[%clk 0:02:19]} 17. Bxc6+ {[%clk 0:01:53.3]} 17... Bd7 {[%clk
0:02:17.6]} 18. Bxd7+ {[%clk 0:01:49.3]} 18... Kxd7 {[%clk 0:02:18.5]} 19. Nd2
{[%clk 0:01:49.2]} 19... g6 {[%clk 0:02:16.5]} 20. Nc4 {[%clk 0:01:48.7]} 20...
Bg7 {[%clk 0:02:14.7]} 21. e3 {[%clk 0:01:47.2]} 21... a4 {[%clk 0:02:13.1]} 22.
Ke2 {[%clk 0:01:46]} 22... Rhc8 {[%clk 0:02:10.3]} 23. Rgc1 {[%clk 0:01:40.9]}
23... Rc6 {[%clk 0:02:10.2]} 24. Nd2 {[%clk 0:01:31.8]} 24... Rbc8 {[%clk
0:02:07.8]} 25. Rxc6 {[%clk 0:01:31.1]} 25... Rxc6 {[%clk 0:02:08.7]} 26. Kd3
{[%clk 0:01:30.9]} 26... e5 {[%clk 0:02:03.7]} 27. d5 {[%clk 0:01:28.5]} 27...
Rc5 {[%clk 0:02:03.6]} 28. e4 {[%clk 0:01:24.9]} 28... f5 {[%clk 0:02:01.8]} 29.
b3 {[%clk 0:01:05.2]} 29... Rc3+ {[%clk 0:01:54.5]} 30. Ke2 {[%clk 0:01:02.7]}
30... a3 {[%clk 0:01:55.4]} 31. Rf1 {[%clk 0:00:59.4]} 31... Bh6 {[%clk
0:01:50.4]} 32. Nf3 {[%clk 0:00:32.7]} 32... Rc2+ {[%clk 0:01:47.2]} 33. Kd3
{[%clk 0:00:31.5]} 33... Rc3+ {[%clk 0:01:44.5]} 34. Ke2 {[%clk 0:00:29.7]}
34... Re3+ {[%clk 0:01:44.7]} 35. Kf2 {[%clk 0:00:26.1]} 35... Rxe4 {[%clk
0:01:45.6]} 36. Rd1 {[%clk 0:00:22.1]} 36... Be3+ {[%clk 0:01:39.6]} 37. Kg2
{[%clk 0:00:19.3]} 37... Bc5 {[%clk 0:01:37.8]} 38. Kf1 {[%clk 0:00:16.9]} 38...
Kd6 {[%clk 0:01:34.6]} 39. Nd2 {[%clk 0:00:16.3]} 39... Rd4 {[%clk 0:01:33.1]}
40. Nc4+ {[%clk 0:00:16.5]} 40... Kxd5 {[%clk 0:01:33.7]} 41. Re1 {[%clk
0:00:14.9]} 41... e4 {[%clk 0:01:33.3]} 42. Re2 {[%clk 0:00:15.1]} 42... Rxc4
{[%clk 0:01:27.7]} 43. bxc4+ {[%clk 0:00:14.5]} 43... Kxc4 {[%clk 0:01:28.6]}
44. Rc2+ {[%clk 0:00:14.7]} 44... Kd5 {[%clk 0:01:27.4]} 45. Ke2 {[%clk
0:00:14.9]} 45... g5 {[%clk 0:01:25.9]} 46. Rd2+ {[%clk 0:00:15]} 46... Bd4
{[%clk 0:01:26]} 47. Rc2 {[%clk 0:00:14.8]} 47... Bc3 {[%clk 0:01:26.5]} 48. Ke3
{[%clk 0:00:12.5]} 48... Ke5 {[%clk 0:01:27.1]} 49. Ke2 {[%clk 0:00:08.2]} 49...
f4 {[%clk 0:01:27]} 50. gxf4+ {[%clk 0:00:08.8]} 50... gxf4 {[%clk 0:01:27.9]}
51. Rc1 {[%clk 0:00:08.9]} 51... f3+ {[%clk 0:01:23.1]} 52. Ke3 {[%clk
0:00:08.5]} 52... Bd4+ {[%clk 0:01:23.6]} 53. Kd2 {[%clk 0:00:08.7]} 53... Kf4
{[%clk 0:01:21.8]} 54. Rc8 {[%clk 0:00:06.5]} 54... Bc3+ {[%clk 0:01:22.4]} 55.
Kd1 {[%clk 0:00:05.7]} 55... e3 {[%clk 0:01:22.9]} 56. Rf8+ {[%clk 0:00:05.7]}
56... Ke4 {[%clk 0:01:23.1]} 57. Re8+ {[%clk 0:00:05.9]} 57... Kd3 {[%clk
0:01:23.2]} 58. Rd8+ {[%clk 0:00:06.1]} 58... Bd4 {[%clk 0:01:23.5]} 59. Ke1
{[%clk 0:00:05.3]} 59... e2 {[%clk 0:01:21.5]} 60. Rf8 {[%clk 0:00:05]} 60...
Bc3+ {[%clk 0:01:21.4]} 61. Kf2 {[%clk 0:00:04]} 61... e1=Q+ {[%clk 0:01:22.3]}
62. Kxf3 {[%clk 0:00:04.8]} 62... Qf1+ {[%clk 0:01:22.6]} 63. Kg4 {[%clk
0:00:05.4]} 63... Qxf8 {[%clk 0:01:23.5]} 0-1

[Event "Early-Titled-Tuesday-Blitz-February-13-2024"]
[Site "Chess.com"]
[Date "2024.02.13"]
[Round "2"]
[White "SlavenPastar"]
[Black "Chempiblinka"]
[Result "1-0"]
[WhiteElo "2608"]
[BlackElo "2366"]
[TimeControl "180+1"]
[EndTime "8:19:34 PST"]
[Termination "SlavenPastar won on time"]

1. b3 {[%clk 0:03:00.9]} 1... Nf6 {[%clk 0:02:57.3]} 2. Bb2 {[%clk 0:03:01.4]}
2... g6 {[%clk 0:02:53.9]} 3. Nf3 {[%clk 0:03:01.9]} 3... Bg7 {[%clk 0:02:53.7]}
4. e3 {[%clk 0:03:02.6]} 4... O-O {[%clk 0:02:53.4]} 5. c4 {[%clk 0:03:03.2]}
5... c5 {[%clk 0:02:53.7]} 6. Nc3 {[%clk 0:03:03.7]} 6... d5 {[%clk 0:02:50.6]}
7. cxd5 {[%clk 0:03:03.7]} 7... Nxd5 {[%clk 0:02:51.5]} 8. a3 {[%clk 0:03:02.2]}
8... Nc6 {[%clk 0:02:48.4]} 9. Be2 {[%clk 0:02:56]} 9... b6 {[%clk 0:02:38.7]}
10. O-O {[%clk 0:02:54.5]} 10... Bb7 {[%clk 0:02:39]} 11. Qc2 {[%clk 0:02:54.6]}
11... Rc8 {[%clk 0:02:33]} 12. Rac1 {[%clk 0:02:43]} 12... e6 {[%clk 0:02:32.7]}
13. Qb1 {[%clk 0:02:42.6]} 13... Qd7 {[%clk 0:02:15.6]} 14. Nxd5 {[%clk
0:02:31]} 14... Qxd5 {[%clk 0:02:02.4]} 15. Bxg7 {[%clk 0:02:29.9]} 15... Kxg7
{[%clk 0:02:01.5]} 16. b4 {[%clk 0:02:29.8]} 16... cxb4 {[%clk 0:01:56.2]} 17.
axb4 {[%clk 0:02:29.3]} 17... Rfd8 {[%clk 0:01:43.3]} 18. d4 {[%clk 0:02:21.9]}
18... Qd6 {[%clk 0:01:34.5]} 19. b5 {[%clk 0:02:13.4]} 19... Nb4 {[%clk
0:01:25.8]} 20. Ne5 {[%clk 0:02:03.3]} 20... Nd5 {[%clk 0:01:18.1]} 21. Bf3
{[%clk 0:01:47.2]} 21... f6 {[%clk 0:01:11]} 22. Nc4 {[%clk 0:01:42]} 22... Qe7
{[%clk 0:00:58.3]} 23. Qb2 {[%clk 0:01:36.1]} 23... Rb8 {[%clk 0:00:42.5]} 24.
Ra1 {[%clk 0:01:31.2]} 24... Ba8 {[%clk 0:00:23.3]} 25. Ra4 {[%clk 0:01:19.1]}
25... Rd7 {[%clk 0:00:07.5]} 26. Rfa1 {[%clk 0:01:16]} 26... Rbd8 {[%clk
0:00:06.5]} 27. e4 {[%clk 0:00:55.6]} 27... Nf4 {[%clk 0:00:04.1]} 28. Nxb6
{[%clk 0:00:48.5]} 28... Nd3 {[%clk 0:00:03.7]} 29. Qc3 {[%clk 0:00:38.3]} 29...
axb6 {[%clk 0:00:02.6]} 30. Qxd3 {[%clk 0:00:31.6]} 30... Bb7 {[%clk 0:00:00.4]}
31. h3 {[%clk 0:00:28.3]} 1-0

[Event "Early-Titled-Tuesday-Blitz-February-13-2024"]
[Site "Chess.com"]
[Date "2024.02.13"]
[Round "2"]
[White "atomicmate123"]
[Black "Perecke"]
[Result "0-1"]
[WhiteElo "2319"]
[BlackElo "2546"]
[TimeControl "180+1"]
[EndTime "8:19:35 PST"]
[Termination "Perecke won by resignation"]

1. e4 {[%clk 0:03:00.9]} 1... c5 {[%clk 0:02:59.4]} 2. Nf3 {[%clk 0:03:00.5]}
2... e6 {[%clk 0:02:56.2]} 3. d4 {[%clk 0:03:00.7]} 3... cxd4 {[%clk 0:02:57.1]}
4. Nxd4 {[%clk 0:03:01.5]} 4... Nc6 {[%clk 0:02:54.1]} 5. Nc3 {[%clk 0:03:01.1]}
5... Qc7 {[%clk 0:02:33]} 6. Nxc6 {[%clk 0:02:59.8]} 6... bxc6 {[%clk
0:02:33.2]} 7. Bd3 {[%clk 0:03:00.1]} 7... d5 {[%clk 0:02:33.6]} 8. O-O {[%clk
0:03:00.2]} 8... Nf6 {[%clk 0:02:34.2]} 9. Qe2 {[%clk 0:02:58.1]} 9... h5 {[%clk
0:02:33.3]} 10. f4 {[%clk 0:02:55.9]} 10... Ng4 {[%clk 0:02:14.4]} 11. h3 {[%clk
0:02:50.3]} 11... Bc5+ {[%clk 0:02:12.5]} 12. Kh1 {[%clk 0:02:48.5]} 12... Qe7
{[%clk 0:01:46.3]} 13. Na4 {[%clk 0:02:36.6]} 13... Qh4 {[%clk 0:01:05.6]} 14.
Qf3 {[%clk 0:02:18.5]} 14... Nf2+ {[%clk 0:01:02]} 15. Kh2 {[%clk 0:02:16.7]}
15... Ng4+ {[%clk 0:01:01.9]} 16. Kh1 {[%clk 0:02:16.7]} 16... Bf2 {[%clk
0:00:56.5]} 17. exd5 {[%clk 0:01:46.9]} 17... exd5 {[%clk 0:00:55.5]} 18. Bd2
{[%clk 0:01:41.8]} 18... Bg3 {[%clk 0:00:52.6]} 19. Rae1+ {[%clk 0:01:22.8]}
19... Be6 {[%clk 0:00:33]} 20. f5 {[%clk 0:01:04.6]} 20... O-O {[%clk 0:00:30]}
21. Re2 {[%clk 0:00:52]} 21... Bd7 {[%clk 0:00:20.8]} 22. Nc5 {[%clk 0:00:51.8]}
22... Bc8 {[%clk 0:00:18.5]} 23. Kg1 {[%clk 0:00:29.2]} 23... Nh2 {[%clk
0:00:18.4]} 24. Rd1 {[%clk 0:00:21.3]} 24... Nxf3+ {[%clk 0:00:18.4]} 25. gxf3
{[%clk 0:00:20.3]} 25... Qxh3 {[%clk 0:00:18.8]} 26. Rg2 {[%clk 0:00:20.2]}
26... Bd6 {[%clk 0:00:17.6]} 27. f6 {[%clk 0:00:16.3]} 27... g6 {[%clk
0:00:14.8]} 28. Bh6 {[%clk 0:00:12.5]} 28... Re8 {[%clk 0:00:13]} 29. Bxg6
{[%clk 0:00:11.4]} 29... Bxc5+ {[%clk 0:00:13.3]} 30. Kf1 {[%clk 0:00:08]} 30...
Qh1+ {[%clk 0:00:13.6]} 0-1

[Event "Early-Titled-Tuesday-Blitz-February-13-2024"]
[Site "Chess.com"]
[Date "2024.02.13"]
[Round "2"]
[White "Timerkhanov"]
[Black "ChessLover0108"]
[Result "0-1"]
[WhiteElo "2657"]
[BlackElo "3001"]
[TimeControl "180+1"]
[EndTime "8:19:36 PST"]
[Termination "ChessLover0108 won on time"]

1. d4 {[%clk 0:03:00.9]} 1... Nf6 {[%clk 0:02:59.3]} 2. Bg5 {[%clk 0:02:59.7]}
2... d5 {[%clk 0:02:57]} 3. Nd2 {[%clk 0:02:58.9]} 3... Nbd7 {[%clk 0:02:51.8]}
4. Ngf3 {[%clk 0:02:57.9]} 4... c5 {[%clk 0:02:49.1]} 5. e3 {[%clk 0:02:57.3]}
5... e6 {[%clk 0:02:49.1]} 6. c3 {[%clk 0:02:56.1]} 6... Bd6 {[%clk 0:02:45.9]}
7. Bd3 {[%clk 0:02:52.9]} 7... h6 {[%clk 0:02:45.3]} 8. Bh4 {[%clk 0:02:52.3]}
8... Qc7 {[%clk 0:02:44.4]} 9. e4 {[%clk 0:02:46.1]} 9... dxe4 {[%clk
0:02:05.7]} 10. Nxe4 {[%clk 0:02:44.6]} 10... Nxe4 {[%clk 0:02:06.2]} 11. Bxe4
{[%clk 0:02:45.1]} 11... O-O {[%clk 0:02:06.9]} 12. Bc2 {[%clk 0:02:27.9]} 12...
Re8 {[%clk 0:01:42.9]} 13. Qd3 {[%clk 0:02:25.1]} 13... Nf8 {[%clk 0:01:43.1]}
14. Bg3 {[%clk 0:01:40.7]} 14... b6 {[%clk 0:01:21.3]} 15. O-O-O {[%clk
0:01:23.8]} 15... Bb7 {[%clk 0:01:17.7]} 16. dxc5 {[%clk 0:01:21.3]} 16... Bxg3
{[%clk 0:01:17.6]} 17. hxg3 {[%clk 0:01:21.1]} 17... bxc5 {[%clk 0:01:01.3]} 18.
Qe3 {[%clk 0:01:12.3]} 18... Rad8 {[%clk 0:00:56.4]} 19. Rxd8 {[%clk 0:01:09.7]}
19... Rxd8 {[%clk 0:00:57.3]} 20. g4 {[%clk 0:01:05.8]} 20... f6 {[%clk
0:00:37.1]} 21. Rh5 {[%clk 0:00:58.9]} 21... e5 {[%clk 0:00:33.3]} 22. g5 {[%clk
0:00:55.1]} 22... hxg5 {[%clk 0:00:25.9]} 23. Nxg5 {[%clk 0:00:20.1]} 23... fxg5
{[%clk 0:00:26.1]} 24. Qh3 {[%clk 0:00:20.2]} 24... Qd6 {[%clk 0:00:21]} 25.
Rh8+ {[%clk 0:00:18.1]} 25... Kf7 {[%clk 0:00:21.2]} 26. Bb3+ {[%clk 0:00:12.3]}
26... c4 {[%clk 0:00:12.7]} 27. Bxc4+ {[%clk 0:00:12]} 27... Ke7 {[%clk
0:00:12.8]} 28. Qf3 {[%clk 0:00:01.6]} 28... Bxf3 {[%clk 0:00:11.2]} 0-1

[Event "Early-Titled-Tuesday-Blitz-February-13-2024"]
[Site "Chess.com"]
[Date "2024.02.13"]
[Round "2"]
[White "TheoSlade"]
[Black "Yaacovn"]
[Result "0-1"]
[WhiteElo "2428"]
[BlackElo "2930"]
[TimeControl "180+1"]
[EndTime "8:19:36 PST"]
[Termination "Yaacovn won by resignation"]

1. d4 {[%clk 0:03:00.9]} 1... Nf6 {[%clk 0:02:59]} 2. c4 {[%clk 0:03:01.3]} 2...
e5 {[%clk 0:02:59.2]} 3. dxe5 {[%clk 0:03:02.2]} 3... Ne4 {[%clk 0:02:59.6]} 4.
Nd2 {[%clk 0:03:01.1]} 4... Bb4 {[%clk 0:02:55.4]} 5. Nf3 {[%clk 0:02:58.5]}
5... Nc6 {[%clk 0:02:54.5]} 6. a3 {[%clk 0:02:54.7]} 6... Nxd2 {[%clk
0:02:54.5]} 7. Bxd2 {[%clk 0:02:52.3]} 7... Bxd2+ {[%clk 0:02:54.8]} 8. Qxd2
{[%clk 0:02:52.6]} 8... O-O {[%clk 0:02:55]} 9. g3 {[%clk 0:02:48]} 9... Qe7
{[%clk 0:02:55.2]} 10. Bg2 {[%clk 0:02:41.2]} 10... Nxe5 {[%clk 0:02:54.6]} 11.
Nxe5 {[%clk 0:02:42.1]} 11... Qxe5 {[%clk 0:02:55]} 12. O-O {[%clk 0:02:41.8]}
12... d6 {[%clk 0:02:55.1]} 13. b4 {[%clk 0:02:28.4]} 13... Rb8 {[%clk
0:02:52.7]} 14. e3 {[%clk 0:02:17]} 14... Bd7 {[%clk 0:02:49.9]} 15. Qd4 {[%clk
0:02:09.5]} 15... Qxd4 {[%clk 0:02:49.5]} 16. exd4 {[%clk 0:02:10.1]} 16... Bc6
{[%clk 0:02:48.4]} 17. Bxc6 {[%clk 0:02:07.6]} 17... bxc6 {[%clk 0:02:49.3]} 18.
Rfe1 {[%clk 0:02:06.3]} 18... Rfe8 {[%clk 0:02:49]} 19. f3 {[%clk 0:01:59.3]}
19... Kf8 {[%clk 0:02:46.5]} 20. Kf2 {[%clk 0:01:59.4]} 20... a5 {[%clk
0:02:44.6]} 21. Rxe8+ {[%clk 0:01:54.6]} 21... Kxe8 {[%clk 0:02:44.6]} 22. bxa5
{[%clk 0:01:47.8]} 22... Kd7 {[%clk 0:02:37.6]} 23. Ke3 {[%clk 0:01:42.9]} 23...
Ra8 {[%clk 0:02:35.6]} 24. Kd3 {[%clk 0:01:38.1]} 24... Rxa5 {[%clk 0:02:35.1]}
25. Kc3 {[%clk 0:01:35.3]} 25... g5 {[%clk 0:02:28]} 26. a4 {[%clk 0:01:34.8]}
26... h5 {[%clk 0:02:25.8]} 27. Kb4 {[%clk 0:01:34.2]} 27... Rf5 {[%clk
0:02:22.1]} 28. a5 {[%clk 0:01:23.7]} 28... Kc8 {[%clk 0:02:19.3]} 29. Ra3
{[%clk 0:01:17.7]} 29... Kb7 {[%clk 0:02:14]} 30. Re3 {[%clk 0:00:50.6]} 30...
Ka6 {[%clk 0:02:09.3]} 31. Ra3 {[%clk 0:00:51]} 31... h4 {[%clk 0:01:59.7]} 32.
c5 {[%clk 0:00:48.9]} 32... Rf6 {[%clk 0:01:53.1]} 33. Re3 {[%clk 0:00:46.2]}
33... h3 {[%clk 0:01:51.7]} 34. Kc4 {[%clk 0:00:33.5]} 34... Rf5 {[%clk
0:01:44.8]} 35. Kb4 {[%clk 0:00:29.3]} 35... Kb7 {[%clk 0:01:37]} 36. Kc4 {[%clk
0:00:29]} 36... Rd5 {[%clk 0:01:24.3]} 37. Rb3+ {[%clk 0:00:28.2]} 37... Ka6
{[%clk 0:01:23.3]} 38. Re3 {[%clk 0:00:29]} 38... dxc5 {[%clk 0:01:21.5]} 39.
dxc5 {[%clk 0:00:29.4]} 39... Rd2 {[%clk 0:01:21.5]} 40. Re7 {[%clk 0:00:26.2]}
40... Kb7 {[%clk 0:01:15.9]} 41. Rxf7 {[%clk 0:00:25.2]} 41... Rxh2 {[%clk
0:01:16.1]} 42. Rg7 {[%clk 0:00:22.4]} 42... Rh1 {[%clk 0:01:15.3]} 43. Rxg5
{[%clk 0:00:03.8]} 43... h2 {[%clk 0:01:10.4]} 44. Rh5 {[%clk 0:00:04.3]} 44...
Rc1+ {[%clk 0:01:09.3]} 45. Kd4 {[%clk 0:00:04.6]} 45... h1=Q {[%clk 0:01:07.8]}
46. Rxh1 {[%clk 0:00:05.1]} 46... Rxh1 {[%clk 0:01:07.4]} 47. g4 {[%clk
0:00:03.6]} 47... Kc8 {[%clk 0:01:06.6]} 48. g5 {[%clk 0:00:02.9]} 48... Kd7
{[%clk 0:01:07]} 49. Ke5 {[%clk 0:00:03.5]} 49... Ke7 {[%clk 0:01:05.8]} 50. f4
{[%clk 0:00:03.5]} 50... Ra1 {[%clk 0:01:01.5]} 51. Kf5 {[%clk 0:00:04.2]} 51...
Rxa5 {[%clk 0:01:01.6]} 52. Kg6 {[%clk 0:00:04.9]} 52... Rxc5 {[%clk 0:01:01.9]}
53. f5 {[%clk 0:00:05.3]} 53... Rc1 {[%clk 0:01:01.4]} 54. Kg7 {[%clk
0:00:05.2]} 54... Rf1 {[%clk 0:01:00.6]} 55. f6+ {[%clk 0:00:06.1]} 55... Ke6
{[%clk 0:01:00.4]} 56. Kg8 {[%clk 0:00:03]} 56... Rxf6 {[%clk 0:00:59.5]} 57.
gxf6 {[%clk 0:00:03.1]} 57... Kxf6 {[%clk 0:01:00.4]} 0-1

[Event "Early-Titled-Tuesday-Blitz-February-13-2024"]
[Site "Chess.com"]
[Date "2024.02.13"]
[Round "2"]
[White "wild3000"]
[Black "artin10862"]
[Result "0-1"]
[WhiteElo "2425"]
[BlackElo "2887"]
[TimeControl "180+1"]
[EndTime "8:19:37 PST"]
[Termination "artin10862 won on time"]

1. d4 {[%clk 0:02:22.1]} 1... Nf6 {[%clk 0:02:54.4]} 2. e3 {[%clk 0:02:22.3]}
2... g6 {[%clk 0:02:51.7]} 3. Nf3 {[%clk 0:02:23.2]} 3... Bg7 {[%clk 0:02:51.5]}
4. Be2 {[%clk 0:02:22.5]} 4... O-O {[%clk 0:02:50.5]} 5. O-O {[%clk 0:02:23.4]}
5... d6 {[%clk 0:02:50.4]} 6. b3 {[%clk 0:02:23.7]} 6... a5 {[%clk 0:02:38.5]}
7. a3 {[%clk 0:02:23.4]} 7... e5 {[%clk 0:02:34.3]} 8. Bb2 {[%clk 0:02:23.2]}
8... e4 {[%clk 0:02:34]} 9. Nfd2 {[%clk 0:02:23.1]} 9... Re8 {[%clk 0:02:33.3]}
10. c4 {[%clk 0:02:23]} 10... h5 {[%clk 0:02:31.9]} 11. Nc3 {[%clk 0:02:21.8]}
11... Bf5 {[%clk 0:02:31.7]} 12. b4 {[%clk 0:02:20.6]} 12... Nbd7 {[%clk
0:02:30.3]} 13. Qb3 {[%clk 0:02:12.2]} 13... h4 {[%clk 0:02:25.3]} 14. bxa5
{[%clk 0:02:03.5]} 14... h3 {[%clk 0:02:24.4]} 15. g3 {[%clk 0:02:03.2]} 15...
Qc8 {[%clk 0:02:20.7]} 16. Nd5 {[%clk 0:01:51]} 16... Rxa5 {[%clk 0:02:18.7]}
17. Bc3 {[%clk 0:01:51]} 17... Ra7 {[%clk 0:02:15.6]} 18. Rfb1 {[%clk
0:01:48.4]} 18... Nf8 {[%clk 0:01:55.1]} 19. Nxf6+ {[%clk 0:01:42.3]} 19... Bxf6
{[%clk 0:01:54.7]} 20. c5 {[%clk 0:01:42.3]} 20... Be6 {[%clk 0:01:46.8]} 21. d5
{[%clk 0:01:13.4]} 21... Bxd5 {[%clk 0:01:42.2]} 22. Qb2 {[%clk 0:00:49.6]}
22... Bxc3 {[%clk 0:01:40]} 23. Qxc3 {[%clk 0:00:50.5]} 23... Bc6 {[%clk
0:01:18.9]} 24. cxd6 {[%clk 0:00:38.8]} 24... cxd6 {[%clk 0:01:19.8]} 25. Nc4
{[%clk 0:00:35.6]} 25... Qd8 {[%clk 0:01:16]} 26. Qd4 {[%clk 0:00:33.2]} 26...
Ra4 {[%clk 0:01:07.9]} 27. Rb4 {[%clk 0:00:32.4]} 27... Rxb4 {[%clk 0:01:04.5]}
28. axb4 {[%clk 0:00:33.3]} 28... d5 {[%clk 0:01:05.2]} 29. Na5 {[%clk
0:00:30.3]} 29... Ne6 {[%clk 0:01:04.9]} 30. Qb2 {[%clk 0:00:22]} 30... d4
{[%clk 0:01:04.3]} 31. b5 {[%clk 0:00:19.8]} 31... Bd5 {[%clk 0:00:59.3]} 32.
exd4 {[%clk 0:00:19.5]} 32... e3 {[%clk 0:00:53.7]} 33. fxe3 {[%clk 0:00:18.6]}
33... Ng5 {[%clk 0:00:54.2]} 34. Bg4 {[%clk 0:00:15.5]} 34... Qe7 {[%clk
0:00:51.5]} 35. Qf2 {[%clk 0:00:14.9]} 35... Qe4 {[%clk 0:00:52.1]} 36. Bf3
{[%clk 0:00:10.1]} 36... Nxf3+ {[%clk 0:00:49.3]} 37. Kf1 {[%clk 0:00:10.1]}
37... Qd3+ {[%clk 0:00:45.1]} 38. Qe2 {[%clk 0:00:08.8]} 38... Nxh2+ {[%clk
0:00:46]} 39. Ke1 {[%clk 0:00:07.4]} 39... Rxe3 {[%clk 0:00:45.5]} 0-1

[Event "Early-Titled-Tuesday-Blitz-February-13-2024"]
[Site "Chess.com"]
[Date "2024.02.13"]
[Round "2"]
[White "Dinamo3"]
[Black "Akylbek2021"]
[Result "1-0"]
[WhiteElo "2526"]
[BlackElo "2279"]
[TimeControl "180+1"]
[EndTime "8:19:39 PST"]
[Termination "Dinamo3 won by resignation"]

1. c4 {[%clk 0:03:00.9]} 1... Nf6 {[%clk 0:02:58.9]} 2. Nc3 {[%clk 0:03:00.4]}
2... d5 {[%clk 0:02:57.6]} 3. cxd5 {[%clk 0:03:00.1]} 3... Nxd5 {[%clk
0:02:58.5]} 4. g3 {[%clk 0:03:00.4]} 4... g6 {[%clk 0:02:56.3]} 5. Bg2 {[%clk
0:03:00.6]} 5... Nb6 {[%clk 0:02:57.1]} 6. Nf3 {[%clk 0:03:00.6]} 6... Bg7
{[%clk 0:02:57.7]} 7. O-O {[%clk 0:03:01.3]} 7... O-O {[%clk 0:02:58.4]} 8. d4
{[%clk 0:03:01.3]} 8... Nc6 {[%clk 0:02:58.3]} 9. d5 {[%clk 0:02:52.9]} 9... Na5
{[%clk 0:02:30.5]} 10. Bf4 {[%clk 0:02:36.1]} 10... Nac4 {[%clk 0:02:20.3]} 11.
Nd2 {[%clk 0:02:03.1]} 11... Nxb2 {[%clk 0:01:37.2]} 12. Qb3 {[%clk 0:02:02.4]}
12... Bd7 {[%clk 0:01:33.8]} 13. Qxb2 {[%clk 0:00:59.3]} 13... Na4 {[%clk
0:01:33.5]} 14. Qxb7 {[%clk 0:00:59.4]} 14... Nxc3 {[%clk 0:01:33.6]} 15. Bxc7
{[%clk 0:00:43.7]} 15... Nxe2+ {[%clk 0:01:32.1]} 16. Kh1 {[%clk 0:00:43.2]}
16... Qc8 {[%clk 0:01:32.4]} 17. Rab1 {[%clk 0:00:33.3]} 17... Nc3 {[%clk
0:01:07.3]} 18. Rb3 {[%clk 0:00:33.4]} 18... Bb5 {[%clk 0:00:50.3]} 19. d6
{[%clk 0:00:11.7]} 19... Bxf1 {[%clk 0:00:32]} 20. Nxf1 {[%clk 0:00:12.6]} 20...
exd6 {[%clk 0:00:25.8]} 21. Qxa8 {[%clk 0:00:12]} 21... Qxc7 {[%clk 0:00:11.1]}
22. Qb7 {[%clk 0:00:12.3]} 22... Qa5 {[%clk 0:00:05.8]} 23. a3 {[%clk
0:00:09.6]} 23... h5 {[%clk 0:00:05.8]} 24. h4 {[%clk 0:00:09.7]} 24... Re8
{[%clk 0:00:06.2]} 25. Ne3 {[%clk 0:00:10]} 25... Ne4 {[%clk 0:00:04.1]} 26.
Bxe4 {[%clk 0:00:08.9]} 26... Qe1+ {[%clk 0:00:04.7]} 27. Kg2 {[%clk 0:00:09.2]}
27... Bd4 {[%clk 0:00:04.3]} 28. Bd5 {[%clk 0:00:07.5]} 28... Rf8 {[%clk
0:00:02.2]} 29. Qb4 {[%clk 0:00:05.5]} 29... Bc5 {[%clk 0:00:02]} 30. Qxe1
{[%clk 0:00:05.5]} 1-0